bitfinex/quotes_ETHUSD_20241130
["timestamp","ask_amount","ask_price","bid_price","bid_amount"]
[1732986678805,0.25500975,3672.7,3672.3,2.72308]
[1732986679008,0.25500859,3672.7,3672.3,2.72308]
[1732986679209,2.08414303,3672.8,3672.3,2.72308]
[1732986679520,0.25501298,3672.7,3672.3,2.72308]
[1732986679719,2.08414303,3672.8,3672.3,2.72308]
[1732986680022,0.25501237,3672.7,3672.3,2.72308]
[1732986680236,0.63093585,3672.7,3671.9,3.50697]
[1732986680381,3.55004,3672.5,3671.7,2.72348]
[1732986680585,3.27307,3672.4,3671.7,2.72348]
[1732986680782,0.682311,3672.3,3671.7,2.72348]
[1732986681418,0.682311,3672.3,3671.5,2.72366]
[1732986681624,0.682311,3672.3,3671.8,2.72345]
[1732986681827,0.682311,3672.3,3671.5,2.72366]
[1732986681994,0.54427732,3672.1,3671.6,2.72356]
[1732986682203,0.54427732,3672.1,3671.7,2.72352]
[1732986683333,0.54427732,3672.1,3671.5,2.72363]
[1732986683538,0.54427732,3672.1,3671.6,2.72358]
[1732986683740,0.54427732,3672.1,3671.3,2.7238]
[1732986683741,2.72338,3671.9,3671.3,2.72378]
[1732986683946,2.72338,3671.9,3671.1,0.7836]
[1732986684125,0.8271,3672.0,3671.0,2.72403]
[1732986684126,2.72347,3671.8,3671.0,2.72403]
[1732986684828,2.72347,3671.8,3671.1,2.72395]
[1732986685024,0.8043,3671.6,3671.0,2.72403]
[1732986685215,3.52791,3671.6,3671.0,2.72403]
[1732986685416,0.8043,3671.6,3671.0,2.72403]
[1732986685610,0.8043,3671.6,3671.1,2.72396]
[1732986686133,0.8043,3671.6,3670.9,2.72407]
[1732986686657,0.8043,3671.6,3671.0,2.72404]
[1732986687011,0.41807271,3671.5,3671.0,2.72404]
[1732986687547,0.41807271,3671.5,3670.7,0.783]
[1732986687858,3.52795,3671.6,3670.9,2.72412]
[1732986688554,3.52795,3671.6,3670.7,2.72426]
[1732986688555,9.63054017,3671.5,3670.7,2.72426]
[1732986688717,0.54852055,3671.2,3670.7,2.72426]
[1732986689044,0.54852055,3671.2,3670.8,2.72416]
[1732986689568,0.55,3671.1,3670.6,2.72434]
[1732986689870,0.55,3671.1,3670.5,2.72442]
[1732986690008,0.55,3671.1,3670.7,2.7242]
[1732986690216,0.55,3671.1,3670.8,2.72416]
[1732986691558,0.55,3671.1,3670.7,2.72424]
[1732986692418,1.01265806,3671.1,3670.4,3.50748]
[1732986692673,0.55,3670.9,3670.3,2.72455]
[1732986692827,0.55,3670.9,3670.2,0.0810693]
[1732986693464,0.55,3670.9,3670.2,2.8056793]
[1732986693773,0.55,3670.7,3670.2,2.8056793]
[1732986694061,0.407842,3670.6,3670.2,2.8056793]
[1732986694263,0.407842,3670.6,3670.3,2.72456]
[1732986694422,0.55,3670.7,3670.3,2.72456]
[1732986694632,0.55,3670.7,3670.2,0.0810693]
[1732986694830,0.55,3670.7,3670.4,2.72448]
[1732986695226,0.55,3670.7,3670.5,2.72437]
[1732986695428,0.55,3670.7,3670.6,2.72435]
[1732986695742,0.8043,3670.8,3670.6,2.72435]
[1732986696662,1.3543,3670.8,3670.7,2.72427]
[1732986696882,2.30382895,3670.8,3670.5,2.72441]
[1732986697029,9.51858952,3670.7,3670.2,0.0810693]
[1732986697234,1.3776,3670.5,3670.2,0.0810693]
[1732986698351,8.69098952,3670.3,3669.6,2.72507]
[1732986698558,0.55,3670.1,3669.6,2.72507]
[1732986698884,0.55,3669.9,3669.1,0.83525157]
[1732986699758,8.67454586,3670.1,3670.0,2.72479]
[1732986699940,8.14098952,3670.1,3670.0,2.72479]
[1732986702587,0.55,3670.7,3670.5,2.72441]
[1732986702791,0.7755729,3670.6,3670.5,2.72441]
[1732986704067,1.3194062,3670.6,3670.5,2.72441]
[1732986709611,0.5438333,3670.6,3670.5,2.72441]
[1732986709810,0.8277,3671.3,3670.5,2.72441]
[1732986709811,0.8277,3671.3,3671.2,2.7239]
[1732986712712,0.55039173,3671.3,3671.2,2.72384]
[1732986719837,0.55,3671.8,3671.7,2.72353]
[1732986720050,0.55,3671.8,3671.5,2.72362]
[1732986720051,0.2544335,3672.0,3671.8,2.72345]
[1732986720220,0.2544335,3672.0,3671.9,2.72338]
[1732986720425,0.7875,3672.2,3672.0,2.72331]
[1732986720625,0.7875,3672.2,3672.1,2.72323]
[1732986720626,0.14489865,3672.2,3672.1,2.72323]
[1732986720828,0.7875,3672.5,3672.4,2.72301]
[1732986721024,1.04188503,3672.5,3672.4,2.72301]
[1732986721238,1.59769477,3672.5,3672.4,2.72301]
[1732986722013,0.81019477,3672.5,3672.4,2.72301]
[1732986722414,0.55580974,3672.5,3672.4,2.72301]
[1732986723927,1.45092817,3672.5,3672.2,2.72312]
[1732986724126,2.26502817,3672.5,3672.2,2.72312]
[1732986724547,2.26502817,3672.5,3672.3,2.72307]
[1732986724952,2.26502817,3672.5,3672.4,2.72301]
[1732986726527,2.26502817,3672.5,3672.2,2.72315]
[1732986726723,1.36990974,3672.5,3672.3,2.72303]
[1732986726973,0.55,3672.4,3670.9,0.7943]
[1732986727156,3.27301,3672.4,3671.7,2.72347]
[1732986727334,0.25438503,3672.3,3671.7,2.19888781]
[1732986727749,0.55,3672.2,3671.1,2.75120576]
[1732986727952,0.55,3672.2,3671.9,2.72338]
[1732986728161,0.55,3672.3,3671.9,2.72338]
[1732986728461,0.55,3672.1,3671.7,2.72348]
[1732986730052,0.55,3672.1,3671.7,2.3407875]
[1732986730257,0.8141,3672.0,3671.3,2.72378]
[1732986730457,0.55,3671.9,3671.5,2.72363]
[1732986731266,0.53682354,3671.8,3671.3,2.72378]
[1732986731481,0.55,3671.7,3671.3,2.72378]
[1732986733144,0.55,3671.7,3671.1,2.72396]
[1732986733344,0.55,3671.5,3670.7,2.7242]
[1732986733555,0.55,3671.3,3670.7,2.7242]
[1732986733883,0.55,3671.3,3670.0,4.80916479]
[1732986733884,8.95198952,3671.2,3670.0,0.7645]
[1732986734031,3.9350435,3671.1,3670.4,2.72447]
[1732986734236,3.27415,3670.9,3670.2,2.72464]
[1732986734473,0.55,3670.6,3670.2,2.72464]
[1732986734648,0.55,3670.6,3670.4,2.72448]
[1732986735461,0.55,3670.6,3669.8,2.72489]
[1732986735678,0.55,3670.6,3670.1,2.72466]
[1732986735878,0.80414684,3670.6,3670.1,2.72466]
[1732986736082,0.55,3670.4,3670.1,2.72466]
[1732986736233,0.80414684,3670.4,3670.1,2.72466]
[1732986736438,0.55,3670.4,3670.1,2.72466]
[1732986737580,0.55,3670.4,3670.2,2.72458]
[1732986738178,0.55,3670.4,3670.0,2.72475]
[1732986739038,1.01315129,3670.5,3670.1,2.72471]
[1732986739233,1.26729813,3670.5,3670.1,2.72465]
[1732986739434,1.01315129,3670.5,3670.2,2.72463]
[1732986739840,0.20782981,3670.4,3670.2,2.72463]
[1732986740475,0.53985597,3670.5,3670.3,2.72455]
[1732986740687,0.53985597,3670.5,3670.4,2.72449]
[1732986746885,0.53985597,3670.5,3670.4,3.50879]
[1732986753858,0.53985597,3670.5,3670.4,2.72449]
[1732986758096,0.53985597,3670.5,3670.2,2.72463]
[1732986758425,0.53985597,3670.5,3670.1,2.72466]
[1732986758723,0.66301372,3670.4,3670.1,2.72466]
[1732986758918,0.25455812,3670.3,3670.1,2.72466]
[1732986759085,0.4084556,3670.4,3670.1,2.72466]
[1732986759274,0.25462516,3670.3,3670.1,2.72466]
[1732986759619,1.03609932,3670.2,3669.7,2.725]
[1732986759774,0.14445549,3670.1,3669.8,2.72488]
[1732986761113,0.25477154,3670.0,3669.8,2.72488]
[1732986761299,0.14445549,3670.1,3669.7,2.72498]
[1732986761531,0.14445549,3670.1,3669.3,2.08442479]
[1732986761532,0.25482792,3670.0,3669.5,2.72516]
[1732986761815,0.14445549,3670.1,3669.6,2.72508]
[1732986761816,0.41362442,3669.9,3669.6,2.72508]
[1732986762132,0.1587965,3669.9,3669.5,2.7251]
[1732986762540,0.25486408,3669.8,3669.5,2.7251]
[1732986762835,0.1587965,3669.9,3669.6,2.72508]
[1732986763999,0.25489583,3669.8,3669.6,2.72508]
[1732986764196,0.1587965,3669.9,3669.6,2.72508]
[1732986764614,0.25485367,3669.8,3669.6,2.72508]
[1732986764832,0.1587965,3669.9,3669.6,2.72508]
[1732986765130,0.55432637,3669.7,3669.6,2.72508]
[1732986765690,0.7814,3669.6,3669.4,2.72523]
[1732986765895,0.93085229,3669.6,3669.4,2.72523]
[1732986766195,0.55,3669.3,3668.9,2.72558]
[1732986766397,0.80484359,3669.3,3668.7,2.72575]
[1732986766731,0.55,3669.3,3669.0,2.72552]
[1732986767111,0.80468404,3669.3,3669.0,2.72552]
[1732986767303,0.1586084,3669.2,3668.9,2.72561]
[1732986767498,1.03608404,3669.4,3668.9,2.72557]
[1732986767730,0.7814,3669.4,3668.4,0.7641]
[1732986767929,1.03608404,3669.4,3668.5,2.7259]
[1732986768240,0.7814,3669.4,3669.1,2.72545]
[1732986768412,0.7814,3669.4,3669.3,2.72531]
[1732986768600,1.75453999,3669.4,3669.3,2.72531]
[1732986769352,8.14098952,3669.6,3669.5,2.72516]
[1732986769839,0.55432637,3669.7,3669.6,2.72509]
[1732986771858,0.55432637,3669.7,3669.6,3.48919]
[1732986779255,0.55432637,3669.7,3669.6,2.72509]
[1732986784763,0.25462425,3670.2,3670.1,2.72472]
[1732986785123,0.79842233,3670.2,3670.1,2.72472]
[1732986785320,1.00042038,3670.2,3670.1,2.72472]
[1732986786160,1.4077785,3670.2,3669.7,2.72499]
[1732986786347,0.25462425,3670.1,3669.9,2.72483]
[1732986786549,0.25462425,3670.0,3669.9,2.72483]
[1732986787475,0.2548059,3670.0,3669.9,2.72483]
[1732986790638,0.4770643,3670.0,3669.9,2.72483]
[1732986790978,0.4770643,3670.0,3669.7,2.72496]
[1732986791271,0.2548059,3669.9,3669.4,2.72518]
[1732986791455,1.0690059,3669.8,3669.4,2.72518]
[1732986791629,0.2548059,3669.7,3669.4,2.72518]
[1732986791945,0.2548059,3669.6,3669.4,2.72518]
[1732986792135,0.2548059,3669.5,3669.4,2.72518]
[1732986793056,0.2548059,3669.5,3669.1,2.72541]
[1732986793262,0.2548059,3669.4,3669.1,2.72541]
[1732986793449,0.2548059,3669.3,3669.1,2.72541]
[1732986793646,0.4078518,3669.5,3669.1,2.72541]
[1732986793875,0.58296288,3669.4,3669.1,2.72541]
[1732986794180,0.25490724,3669.3,3669.1,2.72541]
[1732986794329,0.32805564,3669.4,3669.1,2.72541]
[1732986794534,0.25488219,3669.3,3669.1,2.72541]
[1732986794860,0.32805564,3669.4,3668.9,2.72559]
[1732986795044,0.32805564,3669.4,3668.7,5.62347479]
[1732986795045,0.61574952,3669.3,3669.0,2.72551]
[1732986795235,0.25488432,3669.2,3669.0,2.72551]
[1732986795431,0.7581,3669.2,3669.0,2.72551]
[1732986796078,0.7581,3669.2,3668.8,2.72568]
[1732986796279,0.3608652,3669.3,3668.9,2.7256]
[1732986796594,0.40757046,3669.2,3668.9,2.7256]
[1732986796904,0.40757046,3669.2,3668.7,3.53905]
[1732986796905,0.25489249,3669.1,3668.7,2.72575]
[1732986797107,0.15267797,3669.2,3668.5,2.7259]
[1732986797108,0.25489249,3669.0,3668.8,2.72566]
[1732986797401,1.01299249,3668.9,3668.6,2.72578]
[1732986797561,0.7581,3668.9,3668.6,2.72578]
[1732986797998,0.94383941,3668.9,3668.7,2.72575]
[1732986799608,0.94383941,3668.9,3668.5,2.7259]
[1732986800463,0.94383941,3668.9,3668.8,2.72568]
[1732986800663,0.94383941,3668.9,3668.6,2.72578]
[1732986800997,0.94383941,3668.9,3668.7,2.72572]
[1732986801201,0.94383941,3668.9,3668.8,2.72568]
[1732986801701,0.94383941,3668.9,3668.6,2.72576]
[1732986802172,0.94383941,3668.9,3668.4,2.72596]
[1732986802173,0.40291597,3668.8,3668.4,2.72596]
[1732986802372,0.14826108,3668.8,3668.4,2.72596]
[1732986802572,0.14826108,3668.8,3668.0,0.7527]
[1732986802573,0.25465979,3668.7,3668.0,0.7527]
[1732986802779,0.25467995,3668.6,3668.0,0.7527]
[1732986802974,0.25467995,3668.6,3667.4,2.72666]
[1732986802975,1.02167995,3668.5,3667.4,2.72672]
[1732986803176,0.67021569,3668.4,3668.1,2.72619]
[1732986803404,0.767,3668.5,3668.1,2.72619]
[1732986803637,0.25454626,3668.4,3668.2,2.72611]
[1732986803930,0.767,3668.5,3668.2,2.72611]
[1732986804090,0.25454145,3668.4,3668.2,2.72611]
[1732986804424,0.767,3668.5,3668.2,2.72611]
[1732986804723,0.25443225,3668.4,3668.2,2.72611]
[1732986805224,0.767,3668.5,3668.2,2.72611]
[1732986805520,0.25443225,3668.4,3668.1,2.72619]
[1732986806079,0.25443225,3668.4,3668.2,2.72612]
[1732986806317,0.767,3668.5,3668.3,2.72605]
[1732986806480,0.91624218,3668.4,3668.3,2.72605]
[1732986807325,0.91624218,3668.4,3668.1,2.72619]
[1732986807528,0.91624218,3668.4,3668.2,2.7261]
[1732986807995,0.91624218,3668.4,3667.3,0.7527]
[1732986808194,0.91624218,3668.4,3668.0,2.72626]
[1732986808403,1.0078664,3668.3,3668.0,2.72626]
[1732986808985,1.0078664,3668.3,3668.1,2.72619]
[1732986809283,1.0078664,3668.3,3668.2,2.72613]
[1732986809488,1.0078664,3668.3,3667.3,0.7527]
[1732986809489,1.0078664,3668.3,3667.9,2.7263]
[1732986810085,1.0078664,3668.3,3668.0,2.72627]
[1732986810284,1.07084668,3668.2,3668.0,2.72627]
[1732986811335,0.7675,3668.1,3667.8,2.72643]
[1732986811537,0.7675,3668.1,3667.9,2.72631]
[1732986811739,0.7675,3668.1,3667.7,2.72648]
[1732986811923,0.7675,3668.1,3667.9,2.7263]
[1732986812131,0.18383467,3668.0,3667.9,2.7263]
[1732986813649,0.7675,3668.1,3668.0,2.72628]
[1732986813851,0.53847159,3668.4,3668.3,2.72605]
[1732986813852,1.33587159,3668.4,3668.3,2.72605]
[1732986814054,0.53847159,3668.4,3668.3,2.72605]
[1732986821955,0.53847159,3668.4,3668.3,3.50065]
[1732986822140,0.824,3669.4,3669.3,2.72531]
[1732986822342,1.48566439,3669.4,3669.3,2.72531]
[1732986822662,0.81256351,3669.4,3669.3,2.70496455]
[1732986823269,1.21988001,3669.4,3669.3,2.70496455]
[1732986823983,0.81256351,3669.4,3669.3,2.70496455]
[1732986824484,1.21988001,3669.4,3669.3,2.70496455]
[1732986824708,0.81256351,3669.4,3669.3,2.70496455]
[1732986825140,1.21998019,3669.4,3669.3,2.70496455]
[1732986825344,0.81256351,3669.4,3669.3,2.70496455]
[1732986825955,0.81256351,3669.4,3669.1,2.72544]
[1732986825956,1.01696153,3669.4,3669.1,2.72544]
[1732986826186,1.07858196,3669.3,3669.1,2.72544]
[1732986826494,0.25458196,3669.2,3668.9,2.72557]
[1732986826649,0.824,3669.3,3668.7,2.72574]
[1732986826650,0.25458196,3669.1,3668.7,2.72574]
[1732986826856,0.824,3669.3,3668.9,2.72555]
[1732986827078,0.45402135,3669.2,3668.9,2.72555]
[1732986827278,0.25464136,3669.1,3668.9,2.72555]
[1732986827454,0.19937999,3669.2,3668.9,2.72555]
[1732986827778,0.25462892,3669.1,3668.7,2.72574]
[1732986828096,0.25462892,3669.0,3668.9,2.72554]
[1732986829787,0.25464203,3669.1,3669.0,2.72551]
[1732986830781,0.25464203,3669.1,3668.9,2.72554]
[1732986831002,0.2248442,3669.1,3668.9,2.72554]
[1732986831153,0.2248442,3669.1,3669.0,2.72553]
[1732986831355,0.47947974,3669.1,3669.0,2.72553]
[1732986833387,0.25463554,3669.1,3669.0,2.72553]
[1732986833803,0.55798155,3669.4,3668.9,0.8107]
[1732986833987,0.25461049,3669.3,3669.2,2.72538]
[1732986836206,0.55798155,3669.4,3669.3,2.72531]
[1732986836498,0.81257359,3669.4,3669.3,2.72531]
[1732986837012,1.21992124,3669.4,3669.3,2.72531]
[1732986837304,1.00966571,3669.4,3669.3,2.72531]
[1732986837709,1.41701336,3669.4,3669.3,2.72531]
[1732986837877,1.00966571,3669.4,3669.3,2.72531]
[1732986838279,1.41701336,3669.4,3669.3,2.72531]
[1732986838576,1.00966571,3669.4,3669.3,2.72531]
[1732986839081,1.41701336,3669.4,3669.3,2.72531]
[1732986839465,1.41701336,3669.4,3669.2,2.72538]
[1732986839666,0.80364103,3669.3,3669.2,2.72538]
[1732986839892,1.59114103,3669.3,3669.2,2.72538]
[1732986842377,2.14114103,3669.3,3669.2,2.72538]
[1732986842578,1.21193969,3669.3,3669.2,2.72538]
[1732986847018,1.21293133,3669.3,3669.2,2.72538]
[1732986847781,0.80497359,3669.3,3669.2,2.72538]
[1732986849232,1.21304901,3669.3,3669.2,2.72538]
[1732986849550,1.46890207,3669.3,3669.2,2.72538]
[1732986850635,1.21304901,3669.3,3669.2,2.72538]
[1732986854576,1.21304901,3669.3,3669.0,2.72553]
[1732986854751,0.66304901,3669.2,3669.0,2.72553]
[1732986855058,0.66304901,3669.1,3669.0,2.72553]
[1732986857459,0.55,3669.0,3668.8,0.8113]
[1732986857691,0.55,3668.8,3668.2,2.72608]
[1732986857971,0.55,3668.8,3668.1,0.8113]
[1732986857972,0.91500669,3668.7,3668.5,2.72587]
[1732986858263,0.25497359,3668.6,3668.5,2.72587]
[1732986861564,0.55,3668.8,3668.5,2.72587]
[1732986861743,0.55,3668.9,3668.7,2.72576]
[1732986861944,0.25512344,3668.8,3668.7,2.72576]
[1732986862476,8.14098952,3669.2,3669.1,2.72546]
[1732986862626,8.39606278,3669.2,3669.1,2.72546]
[1732986863029,8.39606278,3669.2,3669.1,3.49776]
[1732986863323,8.93277031,3669.2,3669.1,3.49776]
[1732986864567,8.67769705,3669.2,3669.1,3.49776]
[1732986864778,0.7917681,3669.2,3669.1,3.49776]
[1732986864934,0.25506057,3669.2,3669.1,5.15558135]
[1732986865269,0.6737606,3670.1,3669.9,2.72483]
[1732986865470,0.6630299,3670.0,3669.9,2.72483]
[1732986865788,1.21189197,3670.0,3669.9,2.72483]
[1732986866280,0.80387357,3670.0,3669.9,2.72483]
[1732986868391,0.54886207,3670.0,3669.9,2.72483]
[1732986878953,1.09886207,3670.0,3669.8,2.72492]
[1732986879154,0.55,3669.9,3669.8,2.72492]
[1732986879313,0.76440953,3669.9,3669.8,2.72492]
[1732986879836,0.76440953,3669.9,3669.7,2.72496]
[1732986882347,0.76440953,3669.9,3669.8,2.72494]
[1732986884837,1.01876671,3669.9,3669.8,2.72494]
[1732986885014,0.76440953,3669.9,3669.8,2.72494]
[1732986886144,1.01880489,3669.9,3669.8,2.72494]
[1732986886377,0.76440953,3669.9,3669.8,2.72494]
[1732986886544,0.76440953,3669.9,3669.3,0.7949]
[1732986886545,1.01880457,3669.9,3669.3,2.72531]
[1732986886751,0.55,3669.7,3669.6,2.72509]
[1732986887295,0.80440578,3669.9,3669.6,2.72509]
[1732986887582,0.55,3669.7,3669.6,2.72509]
[1732986887877,0.55,3669.9,3669.6,2.72509]
[1732986888083,0.55,3669.7,3669.6,2.72509]
[1732986888383,1.1129661,3669.7,3669.6,2.72509]
[1732986890091,0.55,3669.6,3669.5,2.72516]
[1732986890296,0.80442503,3669.6,3669.5,2.72516]
[1732986891802,0.80442503,3669.6,3669.0,0.7852]
[1732986892103,0.25442503,3669.5,3669.0,3.51073]
[1732986892256,0.80442503,3669.4,3669.2,2.72531]
[1732986892452,0.80442503,3669.3,3669.2,2.72531]
[1732986892657,0.55,3669.2,3669.1,2.72544]
[1732986892855,0.80442503,3669.2,3669.1,2.72544]
[1732986893702,0.55,3669.4,3669.3,2.72528]
[1732986893904,1.02934126,3669.4,3669.1,2.72544]
[1732986894195,0.55,3669.2,3669.1,2.72544]
[1732986894407,0.80496274,3669.2,3669.1,2.72544]
[1732986897083,0.80487851,3669.2,3669.1,2.72544]
[1732986897701,0.53142873,3669.4,3669.3,2.72531]
[1732986899075,0.25481386,3669.9,3669.4,0.815]
[1732986899289,0.55,3670.3,3670.2,2.72464]
[1732986899506,0.80479859,3670.3,3670.2,2.72464]
[1732986900388,0.25479859,3670.3,3670.2,2.72464]
[1732986900713,0.25480251,3670.3,3670.2,2.72464]
[1732986901005,0.40257116,3670.3,3670.2,2.72464]
[1732986901587,0.25480251,3670.3,3670.2,2.72464]
[1732986901907,0.80480251,3670.3,3670.2,2.72464]
[1732986902111,1.34135969,3670.3,3670.2,2.72464]
[1732986902865,1.34135327,3670.3,3670.0,2.72478]
[1732986903102,1.08655718,3670.3,3669.6,0.815]
[1732986903275,1.2767329,3670.3,3670.2,2.72464]
[1732986903478,1.53153761,3670.3,3670.2,2.72464]
[1732986905322,1.34136189,3670.3,3670.2,2.72464]
[1732986907692,0.55,3670.2,3669.8,2.72493]
[1732986907893,0.55,3670.0,3669.6,2.72508]
[1732986908093,1.01840471,3670.1,3669.2,0.781]
[1732986908094,0.55,3669.8,3669.4,2.72523]
[1732986908309,0.25480471,3669.7,3669.4,2.72523]
[1732986908622,0.55,3669.8,3669.4,2.72523]
[1732986908874,0.25485001,3669.7,3669.6,2.72502]
[1732986908997,0.25485001,3669.7,3669.5,2.72513]
[1732986909323,0.55,3669.8,3669.5,2.72513]
[1732986909525,0.55,3669.6,3669.2,3.50633]
[1732986909707,0.55,3669.6,3667.8,0.13859029]
[1732986909708,1.3136,3669.6,3668.9,3.5066]
[1732986909889,1.3136,3669.6,3669.0,2.72547]
[1732986910089,0.55,3669.4,3669.2,2.72534]
[1732986910396,0.55,3669.4,3669.3,2.72531]
[1732986910719,0.55,3669.7,3669.4,2.72522]
[1732986910926,0.55,3669.5,3669.4,2.72522]
[1732986911220,0.20130255,3669.8,3669.6,2.72503]
[1732986911380,0.75130255,3669.8,3669.7,2.72501]
[1732986911724,1.00613935,3669.8,3669.7,2.72501]
[1732986912939,0.40780032,3670.1,3670.0,2.72479]
[1732986913102,0.25481224,3670.1,3669.7,3.50598]
[1732986913299,0.40769959,3670.3,3670.0,2.72479]
[1732986913532,0.7636,3670.5,3670.0,2.72479]
[1732986913533,0.25480587,3670.2,3670.0,2.72479]
[1732986913736,0.25480587,3670.1,3670.0,2.72479]
[1732986914300,0.80480587,3670.1,3670.0,2.72479]
[1732986915728,0.80480587,3670.1,3669.8,2.72494]
[1732986915914,0.25480587,3670.0,3669.8,2.72494]
[1732986916117,1.47555801,3670.1,3669.9,2.72486]
[1732986916316,0.25477597,3670.0,3669.9,2.72486]
[1732986916952,0.25477599,3670.0,3669.9,2.72486]
[1732986920299,0.2547499,3670.0,3669.7,3.50601]
[1732986920501,1.08185546,3670.1,3669.9,2.72486]
[1732986920737,0.25475809,3670.0,3669.9,2.72486]
[1732986920944,1.08185546,3670.1,3669.9,2.72486]
[1732986921139,1.08185546,3670.1,3670.0,2.72479]
[1732986921345,1.3366051,3670.1,3670.0,2.72479]
[1732986921917,1.3366051,3670.1,3669.7,2.725]
[1732986921918,1.51102559,3670.1,3669.7,2.725]
[1732986922118,0.55,3669.9,3669.4,3.52658]
[1732986922328,0.8273,3669.8,3669.4,2.72518]
[1732986922535,0.55,3669.7,3669.4,2.72518]
[1732986922916,0.2548089,3669.6,3669.1,3.5268]
[1732986923119,0.55,3669.4,3669.0,2.72552]
[1732986923410,0.55,3669.4,3669.3,2.72531]
[1732986923604,0.80483534,3669.4,3669.3,2.72531]
[1732986923843,0.80483534,3669.4,3669.2,2.72538]
[1732986924071,0.80483534,3669.3,3669.2,2.72538]
[1732986924388,0.80483534,3669.3,3668.8,3.52707]
[1732986924550,0.80483534,3669.3,3668.9,2.72557]
[1732986924551,0.25483534,3669.2,3668.9,2.72557]
[1732986924749,0.2548755,3669.1,3668.9,2.72557]
[1732986924931,0.8273,3669.3,3668.9,2.72557]
[1732986925135,0.25488139,3669.2,3668.9,2.72557]
[1732986925431,0.25488139,3669.1,3668.7,2.72572]
[1732986925660,0.80488139,3669.0,3668.6,2.72583]
[1732986925939,0.25488139,3668.9,3668.6,2.72583]
[1732986926268,0.25488139,3668.8,3668.6,2.72583]
[1732986926459,0.55,3669.0,3668.6,2.72583]
[1732986926660,0.25485846,3668.9,3668.6,2.72583]
[1732986926830,0.55,3669.0,3668.6,2.72583]
[1732986927035,0.25485597,3668.9,3668.6,2.72583]
[1732986927230,0.25485597,3668.8,3668.7,2.72575]
[1732986927469,0.95770505,3669.2,3668.7,2.72575]
[1732986927673,0.55,3669.0,3668.7,2.72575]
[1732986927878,0.25481567,3668.9,3668.7,2.72575]
[1732986928063,0.55,3669.0,3668.7,2.72575]
[1732986928668,0.25475111,3668.9,3668.7,2.72575]
[1732986928982,0.55,3669.0,3668.7,2.72575]
[1732986929279,0.25475052,3668.9,3668.5,2.72585]
[1732986929586,1.2111607,3669.0,3668.5,2.72585]
[1732986929753,0.25469328,3668.9,3668.5,2.72585]
[1732986929946,0.25469328,3668.8,3668.5,2.72585]
[1732986930276,0.55235758,3668.8,3668.5,2.72585]
[1732986931078,0.25463115,3668.7,3668.3,0.8014]
[1732986931288,0.55235758,3668.8,3668.6,2.72583]
[1732986932385,0.02597492,3668.7,3668.6,2.72583]
[1732986932584,0.55235758,3668.8,3668.6,2.72583]
[1732986933442,0.7659,3668.7,3668.6,2.72583]
[1732986935785,0.28089997,3668.7,3668.6,2.72583]
[1732986936286,0.53653263,3668.7,3668.6,2.72583]
[1732986938086,0.28209625,3668.7,3668.6,2.72583]
[1732986938288,0.53652876,3668.7,3668.6,2.72583]
[1732986943776,0.28209625,3668.7,3668.6,2.72583]
[1732986943973,0.53645102,3668.7,3668.6,2.72583]
[1732986944359,0.28209625,3668.7,3668.6,2.72583]
[1732986944585,0.53648721,3668.7,3668.6,2.72583]
[1732986944766,0.28209625,3668.7,3668.6,2.72583]
[1732986945204,0.53648892,3668.7,3668.4,2.72598]
[1732986945379,0.28209625,3668.7,3668.5,2.7259]
[1732986947019,0.28209625,3668.7,3668.3,2.72605]
[1732986947177,0.25447726,3668.6,3668.3,2.72599]
[1732986947504,0.28046013,3668.5,3668.3,2.72599]
[1732986947705,0.25447726,3668.4,3668.3,2.72599]
[1732986948070,0.02606652,3668.4,3668.3,2.72599]
[1732986948467,0.55,3668.6,3668.3,2.72599]
[1732986948668,0.02682261,3668.4,3668.3,2.72599]
[1732986948903,0.17650823,3668.5,3668.3,2.72599]
[1732986949079,0.02684724,3668.4,3668.3,2.72599]
[1732986949308,0.28144518,3668.4,3668.3,2.72599]
[1732986950180,0.28144518,3668.4,3668.1,2.7262]
[1732986950378,0.28144518,3668.4,3668.2,2.72613]
[1732986950379,0.21974454,3668.3,3668.2,2.72613]
[1732986950708,0.50129928,3668.3,3668.2,2.72613]
[1732986952169,0.28155474,3668.3,3668.2,2.72613]
[1732986955398,0.68987731,3668.3,3668.2,2.72613]
[1732986955604,0.68987731,3668.3,3667.8,2.72637]
[1732986955791,1.21308878,3668.2,3667.8,2.72637]
[1732986955999,1.19638324,3668.1,3667.8,2.72637]
[1732986956232,0.66308878,3668.0,3667.8,2.72637]
[1732986956510,0.25476621,3667.9,3667.8,2.72637]
[1732986956711,0.28019908,3667.9,3667.8,2.72637]
[1732986959379,0.28058142,3667.9,3667.8,2.72637]
[1732986959602,1.0403865,3667.9,3667.8,2.72637]
[1732986960433,0.82957366,3667.9,3667.8,3.53807]
[1732986960580,0.57442511,3667.9,3667.8,3.53807]
[1732986960776,0.54899224,3667.9,3667.8,3.53807]
[1732986961678,0.408163,3668.3,3667.8,1.75292359]
[1732986961920,0.17040193,3669.0,3668.7,2.72576]
[1732986962126,0.17040193,3669.0,3668.9,2.72561]
[1732986962416,0.66317811,3669.0,3668.9,2.72561]
[1732986962890,1.20691062,3669.0,3668.7,2.72569]
[1732986963096,0.80090937,3668.9,3668.7,2.72569]
[1732986963297,0.66317811,3668.8,3668.7,2.72569]
[1732986963704,0.6899468,3668.8,3668.7,2.72569]
[1732986964718,0.6899468,3668.8,3668.5,2.72588]
[1732986964928,0.66317811,3668.7,3668.6,2.72583]
[1732986965083,0.80031917,3668.7,3668.5,2.7259]
[1732986965299,0.80031917,3668.7,3668.3,2.72604]
[1732986965300,0.66317811,3668.6,3668.3,2.72604]
[1732986965539,0.66320482,3668.5,3668.3,2.72604]
[1732986965833,0.2550685,3668.4,3668.3,2.72605]
[1732986966061,0.2550685,3668.4,3668.1,2.72618]
[1732986966062,0.68983548,3668.4,3668.1,2.72618]
[1732986966210,0.2550685,3668.3,3667.9,2.72633]